bitfinex-derivatives/quotes_SOLF0:USTF0_20250623
["timestamp","ask_amount","ask_price","bid_price","bid_amount"]
[1750666856622,7.427,134.61,134.58,7.4283]
[1750666856824,7.427,134.61,134.58,5.24002332]
[1750666858422,7.427,134.61,134.58,12.66832332]
[1750666859118,7.2604,134.64,134.58,5.24002332]
[1750666859325,8.20337105,134.63,134.58,5.24002332]
[1750666859520,2.96334773,134.62,134.58,5.24002332]
[1750666859721,7.4276,134.6,134.58,5.24002332]
[1750666861019,7.4278,134.59,134.58,5.24002332]
[1750666861620,7.4284,134.58,134.56,5.24002332]
[1750666862021,7.4284,134.58,134.55,7.4298]
[1750666862022,43.56002332,134.61,134.55,5.24002332]
[1750666862622,7.4288,134.58,134.55,5.24002332]
[1750666862924,7.4288,134.58,134.51,9.12565284]
[1750666862925,5.24002332,134.59,134.5,40.8398]
[1750666863125,7.4305,134.55,134.52,5.24002332]
[1750666864220,38.32,134.57,134.51,7.432]
[1750666864221,7.431,134.54,134.51,5.24002332]
[1750666864418,2.96095279,134.56,134.51,5.24002332]
[1750666864619,48.99173184,134.57,134.51,5.24002332]
[1750666864820,2.96095241,134.56,134.51,5.24002332]
[1750666865018,46.51541111,134.57,134.51,5.24002332]
[1750666865220,46.51541111,134.57,134.5,7.4327]
[1750666865417,46.51541111,134.57,134.51,5.24002332]
[1750666865620,7.4309,134.54,134.51,12.67212332]
[1750666867027,43.56002332,134.57,134.51,5.24002332]
[1750666867328,46.51500529,134.57,134.51,5.24002332]
[1750666867821,46.50839906,134.57,134.51,5.24002332]
[1750666868017,43.56002332,134.57,134.51,5.24002332]
[1750666868222,7.4309,134.54,134.51,5.24002332]
[1750666868627,7.4302,134.55,134.51,5.24002332]
[1750666868831,38.32,134.57,134.51,5.24002332]
[1750666869524,7.4303,134.55,134.52,7.4316]
[1750666869824,38.32,134.57,134.51,5.24002332]
[1750666870426,7.4306,134.54,134.51,12.67192332]
[1750666870936,43.56002332,134.57,134.51,5.24002332]
[1750666871524,7.4309,134.54,134.51,5.24002332]
[1750666872726,7.4312,134.53,134.51,5.24002332]
[1750666875932,38.32,134.57,134.48,12.2132]
[1750666876137,5.24002332,134.55,134.48,5.24002332]
[1750666876530,7.4319,134.52,134.48,12.67352332]
[1750666877636,7.4319,134.52,134.49,7.4332]
[1750666878035,45.7713,134.53,134.5,5.24002332]
[1750666878238,45.7713,134.53,134.5,12.67242332]
[1750666880943,38.34,134.53,134.49,7.4331]
[1750666881144,38.34,134.53,134.49,5.24002332]
[1750666881550,7.4324,134.51,134.49,5.24002332]
[1750666883545,7.4319,134.52,134.49,12.67332332]
[1750666885746,7.4323,134.51,134.49,12.67332332]
[1750666886141,7.4328,134.5,134.48,7.4337]
[1750666886348,7.4328,134.5,134.48,12.67372332]
[1750666886848,7.4325,134.51,134.48,12.67372332]
[1750666887336,7.432,134.52,134.49,7.4332]
[1750666888643,7.4323,134.51,134.48,12.67362332]
[1750666888849,43.58002332,134.53,134.48,5.24002332]
[1750666889046,48.37312332,134.53,134.45,38.34]
[1750666889246,7.4336,134.49,134.46,12.67492332]
[1750666889650,48.37312332,134.53,134.46,5.24002332]
[1750666889850,5.24002332,134.51,134.44,7.65762332]
[1750666890251,7.4341,134.48,134.45,7.4355]
[1750666890654,38.28,134.49,134.44,5.24002332]
[1750666890853,7.4344,134.48,134.44,12.67592332]
[1750666891457,7.4344,134.48,134.45,7.4355]
[1750666891852,38.28,134.49,134.46,12.67472332]
[1750666892156,38.28,134.49,134.46,5.24002332]
[1750666893460,7.4341,134.48,134.44,5.24002332]
[1750666894557,7.4345,134.47,134.44,12.67572332]
[1750666894762,38.28,134.49,134.44,5.24002332]
[1750666895150,7.435,134.47,134.44,5.24002332]
[1750666895653,38.28,134.49,134.44,5.24002332]
[1750666895654,7.4351,134.46,134.44,5.24002332]
[1750666895854,43.52002332,134.49,134.44,5.24002332]
[1750666896059,38.28,134.49,134.43,5.24002332]
[1750666896357,7.4342,134.48,134.43,5.24002332]
[1750666896862,7.4342,134.48,134.45,7.4351]
[1750666897065,45.7136,134.49,134.45,5.24002332]
[1750666897254,38.28,134.49,134.47,5.24002332]
[1750666898259,38.28,134.49,134.47,12.67412332]
[1750666899462,7.4323,134.51,134.48,7.4339]
[1750666899761,38.28,134.52,134.48,7.4339]
[1750666899958,7.4323,134.51,134.48,7.4339]
[1750666900963,40.7383,134.54,134.49,5.24002332]
[1750666901168,46.05519928,134.57,134.51,5.24002332]
[1750666901371,5.24002332,134.56,134.5,5.24002332]
[1750666901668,8.1886226,134.56,134.5,12.67272332]
[1750666902057,7.4313,134.53,134.5,5.24002332]
[1750666903268,7.4308,134.54,134.5,5.24002332]
[1750666903763,43.1066,134.57,134.52,5.24002332]
[1750666903969,7.43,134.55,134.52,12.67132332]
[1750666904564,7.4306,134.54,134.52,5.24002332]
[1750666905570,13.58870455,134.56,134.5,5.24002332]
[1750666905771,8.35290447,134.55,134.5,5.24002332]
[1750666905965,7.432,134.52,134.5,5.24002332]
[1750666906167,5.40210116,134.55,134.48,5.24002332]
[1750666906364,2.95969585,134.54,134.48,5.24002332]
[1750666906670,38.28,134.53,134.48,5.24002332]
[1750666907375,7.4323,134.51,134.48,12.67352332]
[1750666908668,7.4321,134.52,134.49,7.4332]
[1750666912078,7.4323,134.51,134.48,12.67352332]
[1750666914278,7.4323,134.51,134.49,7.4332]
[1750666914571,7.4319,134.52,134.49,7.4332]
[1750666915573,45.7114,134.53,134.5,12.67272332]
[1750666916270,38.28,134.53,134.5,5.24002332]
[1750666916471,16.95245737,134.57,134.5,5.24002332]
[1750666916472,38.18,134.56,134.5,5.24002332]
[1750666916868,7.4303,134.55,134.52,7.4312]
[1750666918270,7.4303,134.55,134.52,12.67122332]
[1750666920475,38.18,134.6,134.54,5.24002332]
[1750666920769,8.42769402,134.59,134.58,12.66832332]
[1750666920964,5.45515968,134.61,134.58,5.24002332]
[1750666921274,49.82293405,134.66,134.6,5.24002332]
[1750666921470,8.42379284,134.65,134.62,5.24002332]
[1750666921771,2.96978209,134.64,134.61,5.24002332]
[1750666921973,5.45320932,134.65,134.61,5.24002332]
[1750666922367,7.4248,134.65,134.61,12.66632332]
[1750666924168,7.4252,134.64,134.61,5.24002332]
[1750666924370,42.9371,134.66,134.61,5.24002332]
[1750666924778,7.4252,134.64,134.61,5.24002332]
[1750666924975,42.9371,134.66,134.58,38.18]
[1750666925170,42.9371,134.66,134.6,5.24002332]
[1750666925878,7.426,134.63,134.6,5.24002332]
[1750666926977,7.4263,134.62,134.6,5.24002332]
[1750666927478,7.4258,134.63,134.6,5.24002332]
[1750666927679,42.9371,134.66,134.6,5.24002332]
[1750666928980,7.4262,134.62,134.6,5.24002332]
[1750666934477,7.4258,134.63,134.6,5.24002332]
[1750666935778,7.4258,134.63,134.6,12.66722332]
[1750666935982,7.4254,134.64,134.6,12.66722332]
[1750666936379,7.4254,134.64,134.61,7.4266]
[1750666936682,7.4254,134.64,134.62,5.24002332]
[1750666936878,42.9371,134.66,134.62,5.24002332]
[1750666937383,7.4248,134.65,134.62,5.24002332]
[1750666937975,7.425,134.64,134.62,5.24002332]
[1750666938172,5.24002332,134.64,134.57,5.24002332]
[1750666938382,5.24002332,134.64,134.55,7.1595]
[1750666938571,5.24002332,134.64,134.57,12.66862332]
[1750666938772,5.24002332,134.64,134.57,5.24002332]
[1750666939584,7.4276,134.6,134.57,5.24002332]
[1750666939985,38.16,134.61,134.58,7.4281]
[1750666940286,45.587,134.61,134.57,5.24002332]
[1750666940482,38.16,134.61,134.57,5.24002332]
[1750666940984,45.5869,134.61,134.54,43.40002332]
[1750666941186,45.5869,134.61,134.58,12.66802332]
[1750666941481,38.16,134.64,134.58,5.24002332]
[1750666942582,5.24002332,134.63,134.56,5.24002332]
[1750666942981,5.24002332,134.61,134.51,38.08]
[1750666943186,5.24002332,134.59,134.53,5.24002332]
[1750666943388,5.24002332,134.59,134.52,5.24002332]
[1750666943583,5.24002332,134.59,134.52,12.67132332]
[1750666944996,7.4301,134.55,134.52,12.67132332]
[1750666945185,38.08,134.56,134.51,7.432]
[1750666945389,38.08,134.56,134.51,12.67202332]
[1750666946791,7.4306,134.54,134.51,12.67202332]
[1750666946993,38.08,134.56,134.52,7.4316]
[1750666948093,7.4303,134.55,134.52,7.4316]
[1750666950396,7.4307,134.54,134.51,12.67202332]
[1750666950693,38.08,134.56,134.51,5.24002332]
[1750666950894,7.4314,134.53,134.51,5.24002332]
[1750666951997,7.4325,134.51,134.49,5.24002332]
[1750666952296,10.06632332,134.55,134.49,5.24002332]
[1750666953295,7.432,134.52,134.49,5.24002332]
[1750666953491,38.08,134.52,134.49,5.24002332]
[1750666954293,7.4325,134.51,134.47,12.67422332]
[1750666955191,5.24002332,134.49,134.43,5.24002332]
[1750666955398,38.1,134.48,134.43,5.24002332]
[1750666955592,7.4347,134.47,134.43,5.24002332]
[1750666955794,38.1,134.48,134.43,5.24002332]
[1750666955993,38.1,134.48,134.45,5.24002332]
[1750666956698,38.1,134.48,134.44,5.24002332]
[1750666957291,7.4345,134.47,134.44,5.24002332]
[1750666957497,38.1,134.48,134.44,5.24002332]
[1750666959495,7.4353,134.46,134.44,5.24002332]
[1750666960389,38.1,134.48,134.44,12.67602332]
[1750666961195,38.1,134.48,134.45,7.4354]
[1750666961396,4.7641,134.5,134.46,5.24002332]
[1750666962298,4.7641,134.5,134.44,5.24002332]
[1750666963200,7.4347,134.47,134.44,5.24002332]
[1750666964503,7.4347,134.47,134.44,12.67602332]
[1750666965103,7.4351,134.46,134.44,5.24002332]
[1750666965407,4.7641,134.5,134.44,5.24002332]
[1750666965594,7.4347,134.47,134.44,5.24002332]
[1750666965796,4.7641,134.5,134.44,5.24002332]
[1750666967704,4.7641,134.5,134.44,12.67582332]
[1750666967705,7.4345,134.47,134.44,12.67582332]
[1750666969710,7.4345,134.47,134.43,45.5364]
[1750666969906,7.435,134.46,134.44,5.24002332]
[1750666970109,5.24002332,134.54,134.44,5.24002332]
[1750666970110,5.24002332,134.55,134.44,5.24002332]
[1750666970308,38.1,134.54,134.49,5.24002332]
[1750666970502,7.4319,134.52,134.49,5.24002332]
[1750666970907,38.1,134.54,134.49,5.24002332]
[1750666971406,7.4325,134.51,134.49,5.24002332]
[1750666971607,38.1,134.54,134.49,5.24002332]
[1750666971803,7.4321,134.52,134.49,5.24002332]
[1750666972417,7.4314,134.53,134.49,5.24002332]
[1750666972608,38.1,134.54,134.49,5.24002332]
[1750666972808,38.1,134.54,134.51,5.24002332]
[1750666973011,7.4312,134.53,134.51,5.24002332]
[1750666977326,7.4316,134.52,134.49,5.24002332]
[1750666978519,38.1,134.54,134.46,5.24002332]
[1750666978520,43.34002332,134.54,134.46,5.24002332]
[1750666979326,7.4331,134.5,134.46,5.24002332]
[1750666979521,43.34002332,134.54,134.47,7.4342]
[1750666979918,7.4327,134.51,134.47,7.4342]
[1750666980321,5.24002332,134.52,134.46,5.24002332]
[1750666980521,5.24002332,134.52,134.45,5.24002332]
[1750666980522,7.4339,134.48,134.45,5.24002332]
[1750666980723,38.06,134.5,134.45,5.24002332]
[1750666981633,38.06,134.5,134.48,7.4338]
[1750666981928,38.06,134.5,134.46,5.24002332]
[1750666982326,45.4931,134.5,134.47,7.434]
[1750666983825,38.06,134.5,134.48,12.67372332]
[1750666984233,7.4325,134.51,134.48,12.67372332]
[1750666984427,7.4331,134.5,134.48,5.24002332]
[1750666985231,7.4331,134.5,134.47,12.67422332]
[1750666985528,7.4334,134.49,134.47,5.24002332]
[1750666985926,7.433,134.5,134.47,12.67432332]
[1750666986324,38.06,134.53,134.47,5.24002332]
[1750666986521,43.30002332,134.53,134.47,5.24002332]
[1750666986732,7.4325,134.51,134.48,7.4339]
[1750666992929,7.4328,134.5,134.48,7.4339]
[1750666993831,7.4334,134.49,134.47,12.67422332]
[1750666994427,7.4344,134.47,134.44,7.4357]
[1750666994627,38.06,134.49,134.44,12.67572332]
[1750666995436,7.4346,134.47,134.44,12.67572332]
[1750666998640,7.4341,134.48,134.44,12.67572332]
[1750667000040,7.4341,134.48,134.41,40.5055]
[1750667000041,5.24002332,134.48,134.41,9.12505399]
[1750667000334,2.95519828,134.47,134.41,5.24002332]
[1750667000639,7.4366,134.44,134.41,5.24002332]
[1750667001034,2.3843,134.47,134.41,5.24002332]
[1750667001234,7.437,134.43,134.41,5.24002332]
[1750667003841,7.4363,134.44,134.41,5.24002332]
[1750667004329,7.4363,134.44,134.41,12.67772332]
[1750667004534,7.62432332,134.47,134.41,5.24002332]
[1750667004535,2.3843,134.47,134.41,5.24002332]
[1750667005140,7.4357,134.45,134.42,7.4369]
[1750667005541,2.3843,134.47,134.41,5.24002332]
[1750667005736,7.4341,134.48,134.45,7.4355]
[1750667005941,38.06,134.49,134.43,5.24002332]
[1750667006244,7.4344,134.47,134.44,7.4358]
[1750667006543,38.06,134.49,134.43,5.24002332]
[1750667006938,2.9492863,134.48,134.43,5.24002332]
[1750667007144,38.06,134.49,134.43,5.24002332]
[1750667007344,2.94936043,134.48,134.43,5.24002332]
[1750667007544,43.50213706,134.49,134.43,5.24002332]
[1750667007844,2.94931888,134.48,134.43,5.24002332]
[1750667008047,43.50213706,134.49,134.43,5.24002332]
[1750667008246,7.4353,134.46,134.43,12.67662332]
[1750667008440,38.06,134.49,134.43,5.24002332]
[1750667008640,8.18972634,134.48,134.43,5.24002332]
[1750667008844,2.94984373,134.47,134.41,43.26002332]
[1750667009043,2.9500572,134.46,134.41,5.24002332]
[1750667009344,38.02,134.45,134.41,5.24002332]
[1750667011043,7.4362,134.44,134.41,5.24002332]
[1750667011244,38.02,134.45,134.4,7.438]
[1750667011432,38.02,134.45,134.4,12.67802332]
[1750667011638,7.4367,134.43,134.4,12.67802332]
[1750667013244,7.4367,134.43,134.41,7.4377]
[1750667013447,7.4363,134.44,134.41,7.4377]
[1750667014043,45.4557,134.45,134.42,12.67702332]
[1750667016547,38.02,134.45,134.43,7.4365]
[1750667016940,7.4352,134.46,134.43,7.4365]
[1750667017147,7.4347,134.47,134.44,12.67592332]
[1750667017448,38.04,134.48,134.44,5.24002332]
[1750667017647,45.4741,134.48,134.45,7.4355]
[1750667017948,38.04,134.48,134.44,5.24002332]
[1750667018648,7.4344,134.47,134.44,12.67582332]
[1750667018950,38.04,134.48,134.44,5.24002332]
[1750667019347,45.4742,134.48,134.45,7.4351]
[1750667020348,7.4344,134.47,134.44,12.67552332]
[1750667020653,38.04,134.48,134.45,5.24002332]
[1750667021053,45.4742,134.48,134.45,12.67542332]
[1750667021443,38.04,134.48,134.46,7.4349]
[1750667023054,45.4739,134.48,134.46,7.4349]
[1750667023556,4.8446,134.5,134.47,7.4344]
[1750667023855,682.637,134.51,134.47,12.67442332]
[1750667024256,682.637,134.51,134.48,7.4336]
[1750667024457,682.637,134.51,134.43,7.301]
[1750667024652,7.4331,134.5,134.48,5.24002332]
[1750667026447,7.4328,134.5,134.48,5.24002332]
[1750667026648,40.437,134.51,134.48,5.24002332]
[1750667026852,40.437,134.51,134.46,7.4347]
[1750667026853,40.437,134.51,134.47,5.24002332]
[1750667027459,40.437,134.51,134.45,7.4353]
[1750667027761,40.437,134.51,134.46,5.24002332]
[1750667028359,40.437,134.51,134.46,12.67502332]
[1750667029062,40.437,134.51,134.46,5.24002332]
[1750667029561,40.437,134.51,134.46,12.67492332]
[1750667029963,7.4337,134.49,134.46,12.67492332]
[1750667032266,7.433,134.5,134.48,5.24002332]
[1750667034963,7.433,134.5,134.48,12.67382332]
[1750667035359,45.4725,134.51,134.48,5.24002332]
[1750667036762,10.38248952,134.53,134.46,37.98]
[1750667036966,37.98,134.54,134.52,5.24002332]
[1750667037868,45.4108,134.54,134.52,5.24002332]
[1750667039768,45.4108,134.54,134.52,12.67162332]
[1750667040162,37.98,134.54,134.52,12.67162332]
[1750667040567,5.45164741,134.56,134.53,7.4307]
[1750667040869,7.4297,134.56,134.54,5.24002332]
[1750667041066,2.95161341,134.57,134.54,5.24002332]
[1750667041271,2.95154933,134.58,134.56,5.24002332]
[1750667041467,4.8171,134.59,134.56,5.24002332]
[1750667042470,4.8171,134.59,134.54,5.24002332]
[1750667042671,7.76258984,134.59,134.54,5.24002332]
[1750667042871,7.76258984,134.59,134.52,5.24002332]
[1750667043068,7.4299,134.56,134.53,7.4311]
[1750667043472,4.8171,134.59,134.54,5.24002332]
[1750667043676,40.3805,134.6,134.56,5.24002332]
[1750667044171,7.4279,134.59,134.56,5.24002332]
[1750667044774,7.4285,134.58,134.56,5.24002332]
[1750667046975,7.4281,134.59,134.56,12.66942332]
[1750667047377,7.4284,134.58,134.56,5.24002332]
[1750667050375,7.4281,134.59,134.56,12.66942332]
[1750667050776,7.4281,134.59,134.57,7.4289]
[1750667051274,7.4274,134.6,134.57,7.4286]
[1750667051577,7.4275,134.6,134.56,5.24002332]
[1750667051877,7.4275,134.6,134.57,7.4288]
[1750667052280,7.4279,134.59,134.57,7.4288]
[1750667052476,7.4279,134.59,134.56,12.66922332]
[1750667052775,37.96,134.61,134.56,12.66922332]
[1750667052776,7.4276,134.6,134.56,5.24002332]
[1750667053077,7.4276,134.6,134.57,7.4286]
[1750667053279,7.4276,134.6,134.56,5.24002332]
[1750667053478,37.96,134.61,134.57,7.4288]
[1750667053479,7.4279,134.59,134.57,7.4288]
[1750667054776,7.4279,134.59,134.56,12.66922332]
[1750667055175,7.4279,134.59,134.57,7.4289]
[1750667056183,7.4276,134.6,134.57,7.4289]
[1750667057478,45.3869,134.61,134.58,5.24002332]
[1750667058377,7.4263,134.62,134.6,5.24002332]
[1750667059384,7.4263,134.62,134.6,12.66722332]
[1750667059869,42.7396,134.64,134.61,7.4264]
[1750667060072,42.7396,134.64,134.61,5.24002332]
[1750667061978,37.96,134.64,134.61,5.24002332]
[1750667062682,45.3852,134.64,134.62,7.426]
[1750667062883,45.3852,134.64,134.61,5.24002332]
[1750667063380,7.4257,134.63,134.61,5.24002332]
[1750667063983,37.96,134.64,134.58,37.94]
[1750667064287,37.96,134.64,134.58,5.24002332]
[1750667065184,7.4266,134.62,134.59,7.4277]
[1750667065386,2.4828,134.63,134.59,7.4277]
[1750667065575,7.4264,134.62,134.6,12.66722332]
[1750667065975,2.4828,134.63,134.6,5.24002332]
[1750667066386,7.4264,134.62,134.6,5.24002332]
[1750667066787,7.4264,134.62,134.6,12.66722332]
[1750667068887,7.4264,134.62,134.6,5.24002332]
[1750667069288,7.4267,134.61,134.6,5.24002332]
[1750667070283,7.4264,134.62,134.6,5.24002332]
[1750667070483,2.4828,134.63,134.6,5.24002332]
[1750667070785,2.4828,134.63,134.59,7.4275]
[1750667070786,2.4828,134.63,134.55,40.4234]
[1750667070986,2.4282,134.62,134.57,5.24002332]
[1750667071888,7.4281,134.59,134.57,5.24002332]
[1750667072688,7.4281,134.59,134.57,12.66882332]
[1750667073790,2.4282,134.62,134.55,40.4234]
[1750667073987,7.66822332,134.62,134.55,5.24002332]
[1750667074187,7.66822332,134.62,134.52,37.92]
[1750667074387,7.66822332,134.62,134.55,5.24002332]
[1750667074689,7.4292,134.57,134.54,7.4303]
[1750667074890,7.4292,134.57,134.55,5.24002332]
[1750667075090,37.92,134.59,134.55,5.24002332]
[1750667075288,37.92,134.59,134.54,5.24002332]
[1750667075492,2.2791,134.58,134.54,5.24002332]
[1750667076692,7.429,134.57,134.54,12.67022332]
[1750667077294,7.429,134.57,134.55,7.4299]
[1750667078695,7.4286,134.58,134.55,7.4299]
[1750667078895,37.92,134.59,134.56,12.66932332]
[1750667079095,45.3481,134.59,134.56,12.66932332]
[1750667080501,7.4284,134.58,134.56,12.66932332]
[1750667082598,45.348,134.59,134.56,12.66932332]
[1750667085800,7.4284,134.58,134.56,12.66932332]
[1750667086404,45.3481,134.59,134.56,12.66932332]
[1750667087100,45.3481,134.59,134.57,7.4287]
[1750667087307,37.92,134.59,134.57,7.4287]
[1750667087804,37.92,134.61,134.57,7.4287]
[1750667088301,7.4277,134.6,134.57,7.4287]
[1750667088498,7.4277,134.6,134.58,5.24002332]
[1750667089302,37.92,134.61,134.58,5.24002332]
[1750667089607,7.4278,134.59,134.58,5.24002332]
[1750667097013,7.4287,134.58,134.54,2.3431]
[1750667097204,7.4287,134.58,134.56,5.24002332]
[1750667098115,8.43561849,134.6,134.54,5.24002332]
[1750667098312,2.96243109,134.59,134.54,5.24002332]
[1750667098508,5.47339188,134.6,134.54,5.24002332]
[1750667098708,7.4297,134.56,134.54,5.24002332]
[1750667099417,7.4291,134.57,134.54,5.24002332]
[1750667100113,7.4288,134.58,134.55,7.43]
[1750667100820,7.4295,134.57,134.55,7.43]
[1750667103416,7.4301,134.56,134.54,12.67082332]
[1750667103617,7.4301,134.56,134.54,5.24002332]
[1750667104321,7.4296,134.57,134.54,5.24002332]
[1750667105023,7.4296,134.57,134.54,12.67082332]
[1750667107222,7.43,134.56,134.54,12.67082332]
[1750667108516,7.43,134.56,134.54,5.24002332]
[1750667109525,7.43,134.56,134.54,12.67092332]
[1750667110125,7.4306,134.55,134.53,7.4314]
[1750667110418,7.4306,134.55,134.52,37.92]
[1750667110419,37.88,134.57,134.51,5.24002332]
[1750667110612,7.4321,134.52,134.51,5.24002332]
[1750667110814,7.4321,134.52,134.5,5.24002332]
[1750667112029,7.4327,134.51,134.5,5.24002332]
[1750667112233,5.24002332,134.55,134.49,5.24002332]
[1750667112727,5.24002332,134.53,134.47,5.24002332]
[1750667113026,42.7,134.52,134.45,5.24002332]
[1750667113229,42.7,134.52,134.46,7.4354]
[1750667113230,7.434,134.49,134.46,7.4354]
[1750667113425,42.7,134.52,134.45,5.24002332]
[1750667113626,2.504,134.51,134.45,5.24002332]
[1750667113831,7.74402332,134.51,134.45,5.24002332]
[1750667114237,7.4346,134.48,134.45,12.67602332]
[1750667115439,7.74402332,134.51,134.45,5.24002332]
[1750667115938,7.4353,134.47,134.44,12.67612332]
[1750667116138,7.74402332,134.51,134.44,5.24002332]
[1750667116139,37.9,134.48,134.44,5.24002332]
[1750667116540,7.4355,134.46,134.44,5.24002332]
[1750667117539,7.4355,134.46,134.43,7.4367]
[1750667117740,7.436,134.45,134.43,5.24002332]
[1750667118042,5.24002332,134.47,134.41,5.24002332]
[1750667118240,7.4374,134.43,134.39,9.8168]
[1750667118437,37.9,134.44,134.4,5.24002332]
[1750667118935,7.438,134.42,134.4,5.24002332]
[1750667119336,37.9,134.44,134.37,43.14002332]
[1750667119537,37.9,134.44,134.38,7.4398]
[1750667119930,37.9,134.44,134.38,12.67982332]
[1750667120539,37.9,134.44,134.38,5.24002332]
[1750667120540,7.4387,134.41,134.38,5.24002332]
[1750667121441,5.24002332,134.43,134.37,5.24002332]
[1750667121740,7.4397,134.39,134.37,5.24002332]
[1750667121943,37.9,134.4,134.36,5.24002332]
[1750667122343,7.4402,134.38,134.36,5.24002332]
[1750667122840,37.9,134.4,134.36,5.24002332]
[1750667123139,7.4397,134.39,134.36,5.24002332]
[1750667123443,37.9,134.4,134.36,5.24002332]
[1750667123838,7.4399,134.38,134.36,5.24002332]
[1750667124239,37.9,134.4,134.31,41.71715238]
[1750667124544,7.4405,134.37,134.35,5.24002332]
[1750667125241,7.441,134.36,134.35,5.24002332]
[1750667125441,45.328,134.4,134.35,5.24002332]
[1750667125744,7.4409,134.37,134.35,5.24002332]
[1750667126544,7.4409,134.37,134.33,12.68232332]
[1750667126741,5.24002332,134.39,134.33,5.24002332]
[1750667128146,5.24002332,134.39,134.33,12.68262332]
[1750667128341,7.4411,134.36,134.33,5.24002332]
[1750667128540,5.24002332,134.39,134.33,5.24002332]
[1750667128736,5.24002332,134.37,134.3,5.24002332]
[1750667128938,37.88,134.36,134.3,5.24002332]
[1750667129145,37.88,134.36,134.3,12.68402332]
[1750667129346,7.4426,134.34,134.3,12.68402332]
[1750667129547,7.4426,134.34,134.3,5.24002332]
[1750667129853,37.88,134.36,134.3,5.24002332]
[1750667130142,43.12002332,134.36,134.29,7.4447]
[1750667130341,5.24002332,134.34,134.29,5.24002332]
[1750667130544,5.24002332,134.34,134.27,5.24002332]
[1750667130750,7.4441,134.31,134.27,5.24002332]
[1750667131249,7.4441,134.31,134.27,7.4456]
[1750667131442,7.4441,134.31,134.28,5.24002332]
[1750667131851,45.3234,134.32,134.28,5.24002332]
[1750667132146,37.88,134.32,134.3,5.24002332]
[1750667132351,7.4425,134.34,134.3,12.68412332]
[1750667132757,7.4425,134.34,134.3,5.24002332]
[1750667132955,7.4425,134.34,134.31,7.4434]
[1750667133548,7.4425,134.34,134.31,5.24002332]
[1750667134245,7.4428,134.33,134.31,5.24002332]
[1750667134449,5.24002332,134.33,134.25,37.88]
[1750667134649,2.4616,134.32,134.26,5.24002332]
[1750667134852,37.9,134.31,134.26,5.24002332]
[1750667135147,37.9,134.31,134.28,5.24002332]
[1750667135342,45.3438,134.31,134.28,5.24002332]
[1750667135750,45.3438,134.31,134.28,12.68512332]
[1750667135945,2.3596,134.35,134.28,5.24002332]
[1750667136149,40.2596,134.35,134.3,5.24002332]
[1750667137552,7.4424,134.34,134.31,7.4436]
[1750667137953,45.3419,134.35,134.32,12.68282332]
[1750667138345,37.9,134.35,134.32,5.24002332]
[1750667138654,7.4426,134.34,134.32,5.24002332]
[1750667138845,37.9,134.35,134.32,5.24002332]
[1750667139046,45.342,134.35,134.32,5.24002332]
[1750667139956,7.4421,134.34,134.32,12.68312332]
[1750667140256,7.4421,134.34,134.32,5.24002332]
[1750667140455,7.4421,134.34,134.31,7.4437]
[1750667140656,7.4421,134.34,134.31,12.68372332]
[1750667141350,7.4427,134.33,134.31,5.24002332]
[1750667142045,7.4423,134.34,134.31,12.68362332]
[1750667143151,7.4427,134.33,134.31,12.68362332]
[1750667143350,37.9,134.35,134.31,12.68362332]
[1750667143757,7.4427,134.33,134.31,5.24002332]
[1750667145251,7.4427,134.33,134.31,12.68372332]
[1750667145451,37.9,134.35,134.31,5.24002332]
[1750667145757,37.9,134.35,134.31,12.68352332]
[1750667145958,7.4425,134.34,134.31,12.68352332]
[1750667148255,7.4427,134.33,134.31,5.24002332]
[1750667148856,37.9,134.35,134.31,5.24002332]
[1750667149559,37.9,134.35,134.29,5.24002332]
[1750667149858,43.14002332,134.35,134.29,5.24002332]
[1750667150465,7.4441,134.31,134.29,5.24002332]
[1750667151058,43.14002332,134.35,134.29,12.68482332]
[1750667151259,43.14002332,134.35,134.29,5.24002332]
[1750667151455,40.2041,134.37,134.31,5.24002332]
[1750667151655,7.4417,134.35,134.32,7.4429]
[1750667151962,40.2041,134.37,134.33,5.24002332]